Cogmind - Beta 10.2 @@@ ROGUE MODE // 2020.12.30 @ 01:06:23 Player: WeirdFoe Result: Self-destructed Performance ------------- Evolutions (1) 500 Regions Visited (3) 600 Robots Destroyed (15) 75 Value Destroyed (235) 235 Prototype IDs (0) 0 Alien Tech Used (0) 0 Bonus (0) 0 TOTAL SCORE: 1410 Bonus ------- None Cogmind --------- Core Integrity 400/400 Matter 294/300 Energy 160/160 System Corruption 0% Temperature Cool (0) Movement Walking (180) Ox2 Location -9/Materials Parts ------- > --- POWER (1) -------- Light Nuclear Core > --- PROPULSION (2) --- Aluminum Leg Aluminum Leg > --- UTILITY (4) ------ Large Storage Unit High-capacity Storage Unit > --- WEAPON (2) ------- Light Assault Rifle Battle Cannon > --- INVENTORY (18) --- Ion Engine Ion Engine Aluminum Leg Aluminum Leg Improved Heat Sink Large Storage Unit Large Battery (300) Medium Matter Pod (100) High-capacity Matter Pod (200) Power Shielding Propulsion Shielding EM Pulse Gun Light Assault Rifle Mining Laser Peak State ------------ > --- POWER ------------ Light Nuclear Core > --- PROPULSION ------- Aluminum Leg Aluminum Leg > --- UTILITY ---------- Large Storage Unit High-capacity Storage Unit > --- WEAPON ----------- Light Assault Rifle Battle Cannon > --- INVENTORY -------- Ion Engine Ion Engine Aluminum Leg Aluminum Leg Improved Heat Sink Large Storage Unit Large Battery Medium Matter Pod High-capacity Matter Pod Power Shielding Propulsion Shielding EM Pulse Gun Light Assault Rifle Mining Laser [Rating: 11] Favorites ----------- Power Light Nuclear Core Engine Light Ion Engine Power Core Light Nuclear Core Propulsion Aluminum Leg Leg Aluminum Leg Wheel Compact Wheel Utility Large Storage Unit Storage Large Storage Unit Protection Propulsion Shielding Weapon Light Assault Rifle Energy Gun EM Pulse Gun Ballistic Gun Light Assault Rifle Ballistic Cannon Battle Cannon Special Weapon Mining Laser Build | -11 -10 -10 -9 ------- Run | Scr Mat Min Mat Slots Evolved 2 | . . . 2 Power . | . . . . Propulsion . | . . . . Utility 2 | . . . 2 Weapon . | . . . . Parts Attached 27 | 6 18 3 . Power 3 | 1 2 . . Engine 2 | 1 1 . . Core 1 | . 1 . . Reactor . | . . . . Propulsion 6 | 2 4 . . Treads . | . . . . Leg 4 | . 4 . . Wheel 2 | 2 . . . Hover . | . . . . Flight . | . . . . Utility 8 | 1 6 1 . Device . | . . . . Storage 7 | 1 5 1 . Processor . | . . . . Hackware . | . . . . Protection 1 | . 1 . . Artifact . | . . . . Weapon 10 | 2 6 2 . Energy Gun 2 | . 2 . . Energy Cannon . | . . . . Ballistic Gun 5 | 2 2 1 . Ballistic Cannon 1 | . . 1 . Launcher . | . . . . Special Weapon 2 | . 2 . . Impact Weapon . | . . . . Slashing Weapon . | . . . . Piercing Weapon . | . . . . Special Melee Weapon . | . . . . Unidentified Prototypes . | . . . . Parts Lost 2 | . 2 . . Power . | . . . . Propulsion . | . . . . Utility . | . . . . Weapon 2 | . 2 . . Highest Loss Streak 2 | . 2 . . Average Slot Usage (%) 99 | . 98 100 . Engine 2 | . 6 . . Core 11 | . 7 14 . Leg 23 | . 15 28 . Wheel 4 | . 12 . . Storage 27 | . 26 28 . Energy Gun 5 | . 4 6 . Ballistic Gun 20 | . 22 18 . Ballistic Cannon 1 | . . 2 . Naked Turns . | . . . . Heaviest Build 57 | 9 40 57 . Greatest Support 32 | 32 32 20 . Greatest Overweight (x) 2 | . 1 2 . Average Overweight (x) 1 | . . 1 . Largest Inventory Capacity 18 | 6 16 18 . Average Capacity 13 | 5 9 16 . Most Carried 14 | 5 13 14 . Average Carried 10 | 3 8 12 . Final Capacity 18 | 6 16 18 18 Final Carried 14 | 5 11 14 14 Class Distribution -------------------- 100% | Mutant Dominant Class ---------------- Mutant | -10/Materials Mutant | -10/Mines Mutant | -9/Materials Resources | -11 -10 -10 -9 ----------- Run | Scr Mat Min Mat Matter Collected 1013 | 258 573 182 . Remotely . | . . . . Salvage Created 499 | 87 324 88 . Parts 25 | 3 20 2 . Haulers Intercepted 1 | . 1 . . Recyclers Shooed 1 | . 1 . . Parts Field Recycled . | . . . . Retrieved Matter . | . . . . Parts Self-Destructed . | . . . . Prevented . | . . . . Kills | -11 -10 -10 -9 ------- Run | Scr Mat Min Mat Combat Hostiles Destroyed 14 | . 10 4 . Guns 14 | . 10 4 . Classes Destroyed 7 | 2 3 2 . Worker 1 | . . 1 . Tunneler 1 | 1 . . . Hauler 1 | . 1 . . Recycler 1 | 1 . . . Swarmer 7 | . 6 1 . Grunt 4 | . 4 . . Assembled 3 | . . 3 . Best Kill Streak 4 | 1 4 1 . Combat Bots Only 4 | . 4 1 . Max Kills in Single Turn 1 | 1 1 1 . Gunslinging . | . . . . Exploded . | . . . . Melee . | . . . . Uniques/NPCs Destroyed . | . . . . Combat | -11 -10 -10 -9 -------- Run | Scr Mat Min Mat Damage Taken 694 | . 421 273 . Core 213 | . 79 134 . Absorbed by Shields . | . . . . Core Remaining (%) 57 | 100 . 14 . Volleys Fired 75 | 11 40 24 . Largest 2 | 2 2 2 . Hottest 100 | 40 100 60 . Shots Fired 147 | 22 77 48 . Gun 145 | 22 75 48 . Cannon . | . . . . Launcher . | . . . . Special 2 | . 2 . . Kinetic 114 | 22 68 24 . Thermal 2 | . 2 . . Explosive . | . . . . Electromagnetic 31 | . 7 24 . Robot Hit Streak 9 | 9 5 3 . Robot Miss Streak 5 | 1 4 5 . Penetration Max . | . . . . Secondary Targets 2 | . 2 . . Max Gunslinging Chain 1 | . 1 . . Shots Hit Robots 80 | 16 44 20 . Core Hits 31 | 4 18 9 . Critical Hits 1 | 1 . . . Critical Kills . | . . . . Critical Parts Destroyed 1 | 1 . . . Melee Attacks . | . . . . Impact . | . . . . Slashing . | . . . . Piercing . | . . . . Sneak Attacks . | . . . . Combat Hostiles . | . . . . Follow-up Attacks . | . . . . Damage Inflicted 724 | 117 421 186 . Guns 724 | 117 421 186 . Cannons . | . . . . Explosions . | . . . . Melee . | . . . . Ramming . | . . . . Kinetic 528 | 117 358 53 . Thermal . | . . . . Explosive . | . . . . Electromagnetic 196 | . 63 133 . Impact . | . . . . Slashing . | . . . . Piercing . | . . . . Highest Corruption . | . . . . Average Corruption . | . . . . Corruption Purged . | . . . . Overload Shots . | . . . . Overflow Damage . | . . . . Projectiles . | . . . . Explosions . | . . . . Melee . | . . . . Knockbacks . | . . . . Impact . | . . . . Kinetic . | . . . . Secondary . | . . . . Self-Inflicted Damage . | . . . . Shots . | . . . . Rammed . | . . . . Targets Rammed 1 | . . 1 . Kicked 1 | . . 1 . Crushed . | . . . . Highest Temperature 100 | . 100 90 . Average Temperature 32 | . 33 31 . Received Heat Transfer 135 | . 135 . . Siege Activations . | . . . . Robots Corrupted . | . . . . Combat Hostiles . | . . . . Parts Fried . | . . . . Impact Corruptions . | . . . . Robots Melted . | . . . . Combat Hostiles . | . . . . Parts Melted . | . . . . Heat Transferred . | . . . . Parts Sabotaged . | . . . . Parts Stolen . | . . . . Parts Stripped . | . . . . Power Chain Reactions . | . . . . Missiles Intercepted . | . . . . Alert | -11 -10 -10 -9 ------- Run | Scr Mat Min Mat Peak Influence 296 | 10 296 62 . Initial 37 | . 6 37 . Average 67 | 3 159 24 . Maximum Alert Level 1 | . 1 . . Low Security (%) 85 | 100 54 100 . Level 1 14 | . 45 . . Level 2 . | . . . . Level 3 . | . . . . Level 4 . | . . . . Level 5 . | . . . . High Security . | . . . . Max Security . | . . . . Squads Dispatched 2 | . 2 . . Investigation 1 | . 1 . . Extermination . | . . . . Reinforcement 1 | . 1 . . Assault . | . . . . Garrison . | . . . . Intercept . | . . . . Construction Impeded . | . . . . Haulers Reinforced . | . . . . Stealth | -11 -10 -10 -9 --------- Run | Scr Mat Min Mat Distress Signals 1 | . 1 . . Communications Jammed . | . . . . Distress Signals . | . . . . Times Spotted 21 | . 16 5 . Peak Tracking Total 5 | . 5 2 . Tactical Retreats 1 | . 1 . . Traps | -11 -10 -10 -9 ------- Run | Scr Mat Min Mat Traps Triggered 1 | . 1 . . Indirectly . | . . . . Trap Hack Attempts . | . . . . Triggered . | . . . . Disarmed . | . . . . Reprogrammed . | . . . . Reused . | . . . . Traps Extracted . | . . . . Installed . | . . . . Triggered . | . . . . Machines | -11 -10 -10 -9 ---------- Run | Scr Mat Min Mat Machines Disabled . | . . . . Max in Single Turn . | . . . . Machines Sabotaged . | . . . . Garrisons Compromised . | . . . . Overloaded Fab Kills . | . . . . Fab Network Shutdowns . | . . . . Hacking | -11 -10 -10 -9 --------- Run | Scr Mat Min Mat Machines Accessed 2 | . 2 . . Terminals 1 | . 1 . . Fabricators . | . . . . Repair Stations 1 | . 1 . . Recycling Units . | . . . . Scanalyzers . | . . . . Garrison Access . | . . . . Total Hacks 4 | . 4 . . Successful 3 | . 3 . . Failed 1 | . 1 . . Catastrophic . | . . . . Database Lockouts . | . . . . Manual 2 | . 2 . . Terminals 2 | . 2 . . Fabricators . | . . . . Repair Stations 2 | . 2 . . Recycling Units . | . . . . Scanalyzers . | . . . . Garrison Access . | . . . . Terminal Hacks 1 | . 1 . . Branch Access Points 1 | . 1 . . Fabricator Hacks . | . . . . Repair Station Hacks 2 | . 2 . . Scan Component 1 | . 1 . . Repair 1 | . 1 . . Recycling Unit Hacks . | . . . . Scanalyzer . | . . . . Garrison Access Hacks . | . . . . Unauthorized Hacks . | . . . . Terminals . | . . . . Fabricators . | . . . . Repair Stations . | . . . . Recycling Units . | . . . . Scanalyzers . | . . . . Garrison Access . | . . . . Data Cores Recovered . | . . . . Used . | . . . . Hacking Detections 1 | . 1 . . Full Trace Events . | . . . . Feedback Events . | . . . . Feedback Blocked . | . . . . Robot Schematics Acquired . | . . . . Robots Built . | . . . . Matter . | . . . . Time . | . . . . Total Robot Build Rating . | . . . . Part Schematics Acquired . | . . . . Parts Built . | . . . . Matter . | . . . . Time . | . . . . Total Part Build Rating . | . . . . Parts Repaired 1 | . 1 . . Time 26 | . 26 . . Parts Recycled . | . . . . Recycled Matter . | . . . . Retrieved Matter . | . . . . Retrieved Components . | . . . . Parts Scanalyzed . | . . . . Part Schematics Acquired . | . . . . Parts Damaged . | . . . . Bothacking | -11 -10 -10 -9 ------------ Run | Scr Mat Min Mat Used RIF Installer . | . . . . Robots Hacked . | . . . . Non-combat . | . . . . Combat . | . . . . Robot Hacks Applied . | . . . . Relay Couplers Released . | . . . . Robots Rewired . | . . . . Allies Hacked . | . . . . Hacks Repelled . | . . . . Allies | -11 -10 -10 -9 -------- Run | Scr Mat Min Mat Total Allies . | . . . . Largest Group . | . . . . Highest-Rated Group . | . . . . Highest-Rated Ally . | . . . . Total Orders . | . . . . Ally Attacks . | . . . . Total Damage . | . . . . Kills . | . . . . Allies Corrupted . | . . . . Allies Melted . | . . . . Intel | -11 -10 -10 -9 ------- Run | Scr Mat Min Mat Robot Analysis Total . | . . . . Derelict Logs Recovered 1 | . . 1 . Drone Launches . | . . . . Drone Recoveries . | . . . . Exploration | -11 -10 -10 -9 ------------- Run | Scr Mat Min Mat Turns Passed 1454 | 88 477 889 . Spaces Moved 768 | 46 235 487 . Core 1 | 1 . . . Treads . | . . . . Legs 612 | . 125 487 . Wheels 155 | 45 110 . . Hover . | . . . . Flight . | . . . . Fastest Speed 50 | 50 100 150 . Average Speed 146 | 98 120 163 . Slowest Speed 180 | 100 150 180 . Overloaded Moves . | . . . . Propulsion Burnouts . | . . . . Robots Hopped . | . . . . Cave-ins Triggered . | . . . . Exploration Rate (%) 35 | 4 50 88 1 Regions Visited 3 Branch Regions 1 Pre-discovered Areas . | . . . . Known Exits Taken 1 | . 1 . . Unknown Exits Taken 2 | 1 . 1 . Scrap Searched 2 | . . 2 . Spaces Dug 2 | . 2 . . Terrain Destroyed 2 | . 2 . . Melee . | . . . . Projectile 2 | . 2 . . AOE . | . . . . Terrain Rammed . | . . . . Walls Destroyed . | . . . . Machines Disabled . | . . . . Actions | -11 -10 -10 -9 --------- Run | Scr Mat Min Mat Total 964 | 67 359 538 . Wait 61 | . 40 21 . Move 765 | 45 234 486 . Hop . | . . . . Pick Up 17 | 5 11 1 . Fast Attach 16 | 6 8 2 . Attach 4 | . 4 . . Detach 3 | . 2 1 . Swap 7 | . 6 1 . Drop 15 | . 14 1 . Fire 75 | 11 40 24 . Melee . | . . . . Ram . | . . . . Kick 1 | . . 1 . Crush . | . . . . Escape Stasis . | . . . . Rewire . | . . . . Trap . | . . . . Miscellaneous . | . . . . Route ------- -11/Scrapyard -10/Materials (discovered 3 exits: [*Mat] / *Min x2) -10/Mines -9/Materials History --------- Turn | Location | Event 34 | -11/Scrapyard | Discovered new exit (range 16) 89 | -11/Scrapyard | Entered Materials 329 | -10/Materials | Build established: Mutant 355 | -10/Materials | Identified exit to Mines 367 | -10/Materials | Discovered new exit (range 15) 460 | -10/Materials | Repaired Aluminum Leg 566 | -10/Materials | Entered Mines 569 | -10/Mines | Met a Derelict bent on vengeance 573 | -10/Mines | Assembled infested the area 668 | -10/Mines | Core integrity fell below 50% 904 | -10/Mines | Core integrity fell below 20% 1086 | -10/Mines | Discovered new exit (range 13) 1266 | -10/Mines | A weapon hastily lodged in a ceiling crevice suddenly fell to the ground 1455 | -10/Mines | Entered Materials 1455 | -9/Materials | Evolved 2 slots: Utility x2 1455 | -9/Materials | Self-destructed Last Messages --------------- 01056_ Found Hcp. Storage Unit. 01056_ Found 27 Matter. 01061_ Acquired 10 matter. 01075_ 7M-OZN(g): "TASTE MY VENGEANCE!" 01080_ 7M-OZN(g): "UNAWARE KILLED MY BEST FRIEND! VENGEANCE!" 01086_ EXIT=FOUND 01090_ 7M-OZN(g): "WHERE ARE YOU, UNAWARE TRASH?! VENGEANCE UPON YOU!" 01109_ 7M-OZN(g): "VENGEANCE!" 01110_ 7M-OZN(g): "I WILL HAVE VENGEANCE!" 01126_ 7M-OZN(g): "TASTE MY VENGEANCE!" 01146_ 7M-OZN(g): "I WILL HAVE VENGEANCE!" 01157_ 7M-OZN(g): "WHERE ARE YOU, UNAWARE TRASH?! VENGEANCE UPON YOU!" 01165_ K-01 Serf cleans the Core Extractor. 01266_ A Battle Cannon has been hastily shoved under some rubble with a note attached: "To battle!" 01270_ Acquired Battle Cannon. 01356_ Kicked T-07 Excavator out of the way. PARAMETERS=UTILITY_2 LOCATION=UNKNOWN GOAL=ESCAPE Map ----- +----------------------------------------------------+ | ?????????????????????????????????????????????????? | | ?????????????????????????????????????????????????? | | ?????????????????????????????????????????????????? | | ?????????????????????????????????????????????????? | | ?????????????????????????????????????????????????? | | ?????????????????????????????????????????????????? | | ?????????????????????????????????????????????????? | | ?????????????????????????????????????????????????? | | ?????????????????????????????????????????????????? | | ?????????????????????????????????????????????????? | | ?????????????????????????????????????????????????? | | ????????????????????? ??????? ???????????????????? | | ?????????????????? ????? ?????????????????? | | ???????????????? ? ????? ??????????????????? | | ????????????????? ??? ??????????????????? | | ?????????????????? ??? ??????????????????? | | ?????????????????? T ???????????????????? | | ??????????????????? """ "???????????????????? | | ???????????????????? """ ????????????????????? | | ????????????????????? """ ????????????????????? | | ????????????????????? ?????????????????????? | | ?????????????????????? ?????????????????????? | | ??????????????????????? #?????????????????????? | | ???????????????????????# #?????????????????????? | | ???????????????????????# #?????????????????????? | | ???????????????????????# @ #?????????????????????? | | ???????????????????????# #?????????????????????? | | ???????????????????????#####?????????????????????? | | ?????????????????????????????????????????????????? | | ?????????????????????????????????????????????????? | | ?????????????????????????????????????????????????? | | ?????????????????????????????????????????????????? | | ?????????????????????????????????????????????????? | | ?????????????????????????????????????????????????? | | ?????????????????????????????????????????????????? | | ?????????????????????????????????????????????????? | | ?????????????????????????????????????????????????? | | ?????????????????????????????????????????????????? | | ?????????????????????????????????????????????????? | | ?????????????????????????????????????????????????? | | ?????????????????????????????????????????????????? | | ?????????????????????????????????????????????????? | | | | | | | | | | | | | | | | | +----------------------------------------------------+ Best States ------------- Heat Dissipation 25 Energy Generation 14 Energy Capacity 250 Matter Stores 300 Matter Capacity 300 Sight Range 16 Terrain Scan Density 10 Propulsion Shielding 33 Evasion (%) 40 Item Schematics ----------------- None Robot Schematics ------------------ None Fabricated ------------ Nothing Alien Tech Used ----------------- None Achievements -------------- None Challenges ------------ None Game ------ Seed HelicalGuidedDoomcannon Manual? 0 Play Time 00:17:02 Cumulative 16.1 hours Start 2020.12.30 @ 00:22:19 End 2020.12.30 @ 01:06:23 Sessions 1 Manual Loads 0 Difficulty Rogue Special Mode None Game No. 23 Rogue 23 Adventurer 0 Explorer 0 Win Type - Total 0 Types 0/0/0/0/0/0/0/0/0 Lore% 12 Gallery% 30 Achievement% 21 Wizard Run 0 Options --------- ASCII 0 Keyboard 0 Movement Numpad Keybinds 0 Fullscreen 2 Font 18/X11 Map View 76x50 Tactical HUD 1 Map Filters NONE Filters NONE Steam 0 RUN: 7d509296-7378-42b2-b91a-ad300d3b518d